fUSD/lending_fUSD_20250126
["ID","MTS","AMOUNT","RATE_DAILY","PERIOD"]
[350487589,1737918632176,-196.56,0.00011445,2]
[350487590,1737918632186,-254.05,0.00011445,2]
[350487591,1737918632197,-246.97,0.00011445,2]
[350487592,1737918632207,-245.99,0.00011445,2]
[350487593,1737918632216,-251.17,0.00011445,2]
[350487594,1737918632225,-250.8,0.00011445,2]
[350487595,1737918632236,-246.45,0.00011446,2]
[350487596,1737918632246,-248.2,0.00011446,2]
[350487597,1737918632255,-15.82324151,0.00011447,2]
[350487598,1737918632267,-232.66675849,0.00011447,2]
[350487599,1737918632276,-252.75,0.00011449,2]
[350487600,1737918632285,-246.09,0.00011453,2]
[350487601,1737918632295,-247.45,0.00011459,2]
[350487602,1737918632305,-247.61,0.0001147,2]
[350487603,1737918632315,-254.28,0.0001149,2]
[350487604,1737918632324,-253.8,0.00011525,2]
[350487605,1737918632334,-252.38,0.00011587,2]
[350487606,1737918632343,-154.22,0.00011768,2]
[350487607,1737918632353,-284.42989442,0.00011772,2]
[350487608,1737918632365,-515.57010558,0.00011772,2]
[350487609,1737918632374,-1900.0,0.00011772,2]
[350487610,1737918632383,-615.15726446,0.00011873,2]
[350487611,1737918632393,-254.98,0.000119,2]
[350487612,1737918632402,-56.39261996,0.000119,2]
[350487618,1737918636367,-189.50738004,0.000119,2]
[350487619,1737918636376,-11.97084017,0.000119,2]
[350487620,1737918636387,-235.96915983,0.000119,2]
[350487621,1737918636397,-245.97,0.000119,2]
[350487622,1737918636406,-249.33,0.000119,2]
[350487623,1737918636416,-252.32,0.000119,2]
[350487624,1737918636427,-1000.0,0.000119,2]
[350487625,1737918636437,-1000.0,0.000119,2]
[350487626,1737918636446,-1000.0,0.000119,2]
[350487627,1737918636456,-1000.0,0.000119,2]
[350487628,1737918636465,-1000.0,0.000119,2]
[350487629,1737918636475,-1000.0,0.000119,2]
[350487630,1737918636484,-1000.0,0.000119,3]
[350487631,1737918636493,-1000.0,0.000119,2]
[350487632,1737918636502,-1000.0,0.000119,2]
[350487633,1737918636513,-12893.27706639,0.000119,2]
[350487634,1737918636522,-1000.0,0.000119,2]
[350487635,1737918636532,-1148.0,0.000119,2]
[350487636,1737918636542,-1000.0,0.000119,2]
[350487637,1737918636551,-1000.0,0.000119,2]
[350487638,1737918636561,-1000.0,0.000119,2]
[350487639,1737918636571,-179.5955988,0.000119,2]
[350487640,1737918636583,-52156.26243295,0.000119,2]
[350487641,1737918636592,-500.0,0.00011973,2]
[350487642,1737918636602,-500.0,0.00011999,2]
[350487643,1737918636612,-500.0,0.00011999,2]
[350487644,1737918636622,-500.0,0.00011999,2]
[350487645,1737918636632,-500.0,0.00011999,2]
[350487646,1737918636643,-1006.26165683,0.00011999,3]
[350487647,1737918636652,-500.0,0.00011999,2]
[350487648,1737918636663,-500.0,0.00011999,2]
[350487649,1737918636674,-500.0,0.00011999,2]
[350487650,1737918636683,-500.0,0.00011999,2]
[350487651,1737918636693,-500.0,0.00011999,2]
[350487652,1737918636703,-500.0,0.00011999,2]
[350487653,1737918636712,-500.0,0.00011999,2]
[350487654,1737918636721,-500.0,0.00011999,2]
[350487655,1737918636733,-500.0,0.00011999,2]
[350487656,1737918636743,-500.0,0.00011999,2]
[350487657,1737918636754,-500.0,0.00011999,2]
[350487658,1737918636765,-500.0,0.00011999,2]
[350487659,1737918636774,-500.0,0.00011999,2]
[350487660,1737918636784,-500.0,0.00011999,2]
[350487661,1737918636795,-500.0,0.00011999,2]
[350487662,1737918636805,-500.0,0.00011999,2]
[350487663,1737918636815,-500.0,0.00011999,2]
[350487664,1737918636824,-500.0,0.00011999,2]
[350487665,1737918636834,-500.0,0.00011999,2]
[350487666,1737918636844,-500.0,0.00011999,2]
[350487667,1737918636854,-500.0,0.00011999,2]
[350487668,1737918636864,-500.0,0.00011999,2]
[350487669,1737918636873,-500.0,0.00011999,2]
[350487670,1737918636883,-500.0,0.00011999,2]
[350487671,1737918636892,-500.0,0.00011999,2]
[350487672,1737918636901,-500.0,0.00011999,2]
[350487673,1737918636910,-500.0,0.00011999,2]
[350487674,1737918636919,-500.0,0.00011999,2]
[350487675,1737918636929,-500.0,0.00011999,2]
[350487676,1737918636938,-500.0,0.00011999,2]
[350487677,1737918636947,-500.0,0.00011999,2]
[350487678,1737918636957,-500.0,0.00011999,2]
[350487679,1737918636967,-500.0,0.00011999,2]
[350487680,1737918636976,-511.14317639,0.00011999,2]
[350487681,1737918636985,-500.0,0.00011999,2]
[350487682,1737918636994,-500.0,0.00011999,2]
[350487683,1737918637004,-500.0,0.00011999,2]
[350487684,1737918637013,-500.0,0.00011999,2]
[350487685,1737918637022,-500.0,0.00011999,2]
[350487686,1737918637030,-500.0,0.00011999,2]
[350487687,1737918637039,-500.0,0.00011999,2]
[350487688,1737918637048,-500.0,0.00011999,2]
[350487689,1737918637057,-500.0,0.00011999,2]
[350487690,1737918637067,-500.0,0.00011999,2]
[350487691,1737918637076,-500.0,0.00011999,2]
[350487692,1737918637085,-500.0,0.00011999,2]
[350487693,1737918637094,-500.0,0.00011999,2]
[350487694,1737918637104,-500.0,0.00011999,2]
[350487695,1737918637113,-500.0,0.00011999,2]
[350487696,1737918637122,-500.0,0.00011999,2]
[350487697,1737918637132,-500.0,0.00011999,2]
[350487698,1737918637141,-500.0,0.00011999,2]
[350487699,1737918637150,-500.0,0.00011999,2]
[350487700,1737918637163,-500.0,0.00011999,2]
[350487701,1737918637172,-500.0,0.00011999,2]
[350487702,1737918637184,-500.0,0.00011999,2]
[350487703,1737918637193,-500.0,0.00011999,2]
[350487704,1737918637204,-500.0,0.00011999,2]
[350487705,1737918637213,-500.0,0.00011999,2]
[350487706,1737918637222,-500.0,0.00011999,2]
[350487707,1737918637231,-500.0,0.00011999,2]
[350487708,1737918637242,-500.0,0.00011999,2]
[350487709,1737918637252,-500.0,0.00011999,2]
[350487710,1737918637261,-500.0,0.00011999,2]
[350487711,1737918637270,-500.0,0.00011999,2]
[350487712,1737918637280,-503.63525526,0.00011999,2]
[350487713,1737918637289,-500.0,0.00011999,2]
[350487714,1737918637299,-500.0,0.00011999,2]
[350487715,1737918637308,-217.46478585,0.00011999,2]
[350487716,1737918637317,-500.0,0.00011999,2]
[350487717,1737918637326,-500.0,0.00011999,2]
[350487718,1737918637336,-500.0,0.00011999,2]
[350487719,1737918637346,-500.0,0.00011999,2]
[350487720,1737918637355,-500.0,0.00011999,2]
[350487721,1737918637364,-508.45590278,0.00011999,2]
[350487722,1737918637374,-500.0,0.00011999,2]
[350487723,1737918637382,-500.0,0.00011999,2]
[350487724,1737918637393,-626.69701753,0.00011999,2]
[350487725,1737918637402,-500.0,0.00011999,2]
[350487726,1737918637411,-500.0,0.00011999,2]
[350487727,1737918637420,-500.0,0.00011999,2]
[350487728,1737918637431,-500.0,0.00011999,2]
[350487729,1737918637440,-507.84520989,0.00011999,2]
[350487730,1737918637449,-500.0,0.00011999,2]
[350487731,1737918637458,-500.0,0.00011999,2]
[350487732,1737918637468,-500.0,0.00011999,2]
[350487733,1737918637477,-500.0,0.00011999,2]
[350487734,1737918637487,-638.73630753,0.00011999,2]
[350487735,1737918637497,-500.0,0.00011999,2]
[350487736,1737918637506,-500.0,0.00011999,2]
[350487737,1737918637515,-500.0,0.00011999,2]
[350487738,1737918637524,-410.43558421,0.00011999,2]
[350487739,1737918637536,-553.0,0.00011999,2]
[350487740,1737918637546,-500.0,0.00011999,2]
[350487741,1737918637555,-500.0,0.00011999,2]
[350487742,1737918637563,-500.0,0.00011999,2]
[350487743,1737918637573,-500.0,0.00011999,2]
[350487744,1737918637582,-542.37490865,0.00011999,2]
[350487745,1737918637591,-514.04592151,0.00011999,2]
[350487746,1737918637600,-508.37097381,0.00011999,2]
[350487747,1737918637609,-500.0,0.00011999,2]
[350487749,1737918637618,-500.0,0.00011999,2]
[350487751,1737918637628,-500.0,0.00011999,2]
[350487753,1737918637637,-500.0,0.00011999,2]
[350487755,1737918637646,-500.0,0.00011999,2]
[350487757,1737918637656,-435.67531438,0.00011999,2]
[350487758,1737918637665,-500.0,0.00011999,2]
[350487759,1737918637675,-500.0,0.00011999,2]
[350487760,1737918637685,-500.0,0.00011999,2]
[350487761,1737918637694,-500.0,0.00011999,2]
[350487762,1737918637704,-500.0,0.00011999,2]
[350487763,1737918637713,-500.0,0.00011999,2]
[350487764,1737918637722,-500.0,0.00011999,2]
[350487765,1737918637731,-500.0,0.00011999,2]
[350487766,1737918637740,-500.0,0.00011999,2]
[350487767,1737918637750,-500.0,0.00011999,2]
[350487768,1737918637759,-500.0,0.00011999,2]
[350487769,1737918637768,-500.0,0.00011999,2]
[350487770,1737918637778,-298.15430958,0.00011999,2]
[350487771,1737918637787,-500.0,0.00011999,2]
[350487772,1737918637797,-183.43,0.00011999,2]
[350487773,1737918637806,-500.0,0.00011999,2]
[350487774,1737918637815,-500.0,0.00011999,2]
[350487775,1737918637824,-500.0,0.00011999,2]
[350487776,1737918637834,-500.0,0.00011999,2]
[350487777,1737918637843,-500.0,0.00011999,2]
[350487778,1737918637853,-500.0,0.00011999,2]
[350487779,1737918637863,-500.0,0.00011999,2]
[350487780,1737918637872,-500.0,0.00011999,2]
[350487781,1737918637881,-500.0,0.00011999,2]
[350487782,1737918637891,-500.0,0.00011999,2]
[350487783,1737918637902,-500.0,0.00011999,2]
[350487784,1737918637912,-500.0,0.00011999,2]
[350487785,1737918637921,-500.0,0.00011999,2]
[350487786,1737918637931,-507.28898198,0.00011999,2]
[350487787,1737918637940,-500.0,0.00011999,2]
[350487788,1737918637949,-196.83111607,0.00012,2]
[350487789,1737918637959,-14435.88264668,0.00012,2]
[350487790,1737918637972,-550.0,0.00012,2]
[350487791,1737918637983,-2194.53380869,0.00012,2]
[350487792,1737918637994,-614.72573488,0.00012,2]
[350487793,1737918638005,-101942.41919093,0.00012,2]
[350487794,1737918638016,-329.7,0.00012,2]
[350487795,1737918638140,-1582.717357,0.00012,2]
[350487796,1737918638165,-941.57868834,0.00012,2]
[350487797,1737918638177,-7333.20151481,0.00012,2]
[350487798,1737918638191,-336.01844849,0.00012,2]
[350487799,1737918638204,-2939.02903934,0.00012,2]
[350487800,1737918638215,-4849.99996427,0.00012,2]
[350487801,1737918638226,-8277.934682,0.00012,2]
[350487807,1737918639844,-470.56482525,0.00012,2]
[350487808,1737918639896,-250.86035661,0.00012,2]
[350487809,1737918639958,-2294.31018015,0.00012,2]
[350487810,1737918639973,-57886.7804481,0.00012,2]
[350487811,1737918639983,-6024.56471398,0.00012,2]
[350487812,1737918639994,-317.58,0.00012,2]
[350487813,1737918640223,-32634.8730674,0.00012,2]
[350487814,1737918640237,-6685.92315262,0.00012,2]
[350487818,1737918643120,-253.08,0.000119,2]
[350487819,1737918643131,-6000.67790323,0.00012,2]
[350487820,1737918643147,-10329.03186,0.00012,2]
[350487821,1737918643163,-1391.63534985,0.00012,2]
[350487822,1737918644503,-219.1604894,0.00012,2]
[350487823,1737918644516,-9869.89459006,0.00012,2]
[350487824,1737918644529,-382.03118686,0.00012,2]
[350487827,1737918645923,-2568.4895885,0.00012,2]
[350487828,1737918645977,-586.19112201,0.00012,2]
[350487829,1737918646134,-973.91200023,0.00012,2]
[350487833,1737919189114,166.81,8.532e-05,2]
[350487834,1737919246006,-248.93,0.00010347,2]
[350487835,1737919246032,-23900.0,0.0001036,2]
[350487836,1737919246059,-751.07,0.0001036,2]
[350487839,1737919468566,408.02,0.00016658,30]
[350487854,1737919723435,301.78560011,9e-05,3]
[350487857,1737919774593,1000.0,0.00022,120]
[350487858,1737919778650,1000.0,0.00022,120]
[350487859,1737919779603,1000.0,0.00022,120]
[350487860,1737919783765,1000.0,0.00022,120]
[350487873,1737919832084,-171.8,0.00010137,2]
[350487874,1737919832095,-172.6,0.00010316,2]
[350487875,1737919832105,-250.0,0.00010343,2]
[350487876,1737919832114,-248.93,0.0001036,2]
[350487877,1737919832124,-545.83,0.0001037,2]
[350487878,1737919832133,-2045.86376,0.0001037,2]
[350487879,1737919832143,-1500.0,0.00010481,2]
[350487880,1737919832153,-166.81,0.00010796,2]
[350487881,1737919832163,-156.62,0.00010943,2]
[350487882,1737919832173,-248.93,0.00010944,2]
[350487883,1737919832183,-245.42,0.00010945,2]
[350487884,1737919832193,-254.41,0.00010947,2]
[350487885,1737919832202,-251.47,0.00010949,2]
[350487886,1737919832212,-156.62,0.00010954,2]
[350487887,1737919832223,-156.62,0.00010965,2]
[350487888,1737919832232,-156.62,0.00010976,2]
[350487889,1737919832241,-156.62,0.00010987,2]
[350487890,1737919832251,-156.62,0.00010998,2]
[350487891,1737919832260,-250.0,0.0001103,2]
[350487892,1737919832270,-248.78,0.00011042,2]
[350487893,1737919832280,-251.79,0.00011055,2]
[350487894,1737919832289,-196.56,0.00011087,2]
[350487895,1737919832298,-250.18,0.00011112,2]
[350487896,1737919832308,-249.04,0.00011131,2]
[350487897,1737919832317,-150.0,0.00011159,2]
[350487898,1737919832326,-245.82,0.0001116,2]
[350487899,1737919832336,-250.72,0.0001116,2]
[350487900,1737919832346,-251.45,0.0001116,2]
[350487901,1737919832356,-253.68,0.00011161,2]
[350487902,1737919832365,-249.25,0.00011161,2]
[350487903,1737919832374,-245.28,0.00011161,2]
[350487904,1737919832383,-254.0,0.00011161,2]
[350487905,1737919832392,-246.02,0.00011161,2]
[350487906,1737919832401,-248.44,0.00011161,2]
[350487907,1737919832411,-254.0,0.00011161,2]
[350487908,1737919832420,-247.3,0.00011161,2]
[350487909,1737919832429,-247.78,0.00011161,2]
[350487910,1737919832438,-319.56,0.00011161,2]
[350487911,1737919832447,-150.0,0.000112,2]
[350487912,1737919832457,-248.44,0.00011393,2]
[350487913,1737919832467,-173.12,0.00011403,2]
[350487914,1737919832476,-252.97,0.00011444,2]
[350487915,1737919832485,-638.0,0.00011498,2]
[350487916,1737919832495,-250.48,0.00011532,2]
[350487917,1737919832504,-7069.89251,0.000116,2]
[350487918,1737919832513,-248.93,0.00011641,2]
[350487919,1737919832523,-1000.0,0.00011655,2]
[350487920,1737919832532,-248.53,0.00011682,2]
[350487921,1737919832542,-700.0,0.00011772,2]
[350487922,1737919832556,-1800.0,0.00011772,2]
[350487923,1737919832565,-245.81,0.00011772,2]
[350487924,1737919832575,-247.25,0.00011772,2]
[350487925,1737919832585,-254.93,0.00011772,2]
[350487926,1737919832598,-544.257,0.00011789,2]
[350487927,1737919832607,-2500.0,0.000118,2]
[350487928,1737919832616,-294.41408625,0.000118,2]
[350487929,1737919832626,-294.41408616,0.00011811,2]
[350487930,1737919832635,-294.41408616,0.00011822,2]
[350487931,1737919832645,-541.23470953,0.00011826,2]
[350487932,1737919832654,-5004.54930114,0.00011826,2]
[350487933,1737919832663,-654.57402767,0.00011826,2]
[350487934,1737919832673,-5004.54930114,0.00011827,2]
[350487935,1737919832683,-34398.08948137,0.0001183,2]
[350487936,1737919832691,-8048.28766081,0.00011831,2]
[350487937,1737919832700,-402.52707668,0.00011832,2]
[350487938,1737919832710,-294.41408616,0.00011833,2]
[350487939,1737919832720,-362.52707668,0.00011835,2]
[350487940,1737919832729,-3330.17784803,0.00011835,2]
[350487941,1737919832739,-1291.13732529,0.00011837,2]
[350487942,1737919832749,-402.52707668,0.00011837,2]
[350487943,1737919832758,-11206.41227055,0.00011838,2]
[350487944,1737919832767,-3330.17784803,0.00011838,2]
[350487945,1737919832776,-362.52707668,0.00011839,2]
[350487946,1737919832786,-5004.54930114,0.00011844,2]
[350487947,1737919832795,-200.0,0.00011844,2]
[350487948,1737919832804,-294.41408616,0.00011844,2]
[350487949,1737919832813,-327.28701383,0.00011845,2]
[350487950,1737919832822,-200.0,0.00011849,2]
[350487951,1737919832831,-11206.41227055,0.00011849,2]
[350487952,1737919832841,-8048.28766081,0.0001185,2]
[350487953,1737919832849,-200.0,0.0001185,2]
[350487954,1737919832859,-541.23470953,0.00011851,2]
[350487955,1737919832868,-402.52707668,0.00011852,2]
[350487956,1737919832877,-694.57402766,0.00011854,2]
[350487957,1737919832886,-1291.13732529,0.00011855,2]
[350487958,1737919832896,-294.41408616,0.00011856,2]
[350487959,1737919832906,-694.57402766,0.00011856,2]
[350487960,1737919832915,-200.0,0.00011857,2]
[350487961,1737919832925,-5004.54930114,0.00011857,2]
[350487962,1737919832934,-3330.17784803,0.00011858,2]
[350487963,1737919832943,-402.52707668,0.00011859,2]
[350487964,1737919832952,-200.0,0.00011859,2]
[350487965,1737919832962,-34398.08948137,0.00011861,2]
[350487966,1737919832971,-694.57402766,0.00011862,2]
[350487967,1737919832981,-11206.41227055,0.00011863,2]
[350487968,1737919832990,-1291.13732529,0.00011863,2]
[350487969,1737919832999,-200.0,0.00011866,2]
[350487970,1737919833008,-541.23470953,0.00011866,2]
[350487971,1737919833017,-294.41408616,0.00011867,2]
[350487972,1737919833027,-1291.13732529,0.00011867,2]
[350487973,1737919833036,-2128.22455242,0.0001187,2]
[350487974,1737919833046,-3330.17784803,0.00011871,2]
[350487975,1737919833056,-327.28701383,0.00011875,2]
[350487976,1737919833065,-327.28701383,0.00011876,2]
[350487977,1737919833074,-654.57402767,0.00011877,2]
[350487978,1737919833084,-2128.22455242,0.00011878,2]
[350487979,1737919833094,-294.41408616,0.00011878,2]
[350487980,1737919833104,-34398.08948137,0.00011881,2]
[350487981,1737919833114,-8048.28766081,0.00011882,2]
[350487983,1737919833124,-362.52707668,0.00011883,2]
[350487984,1737919833134,-2128.22455242,0.00011885,2]
[350487985,1737919833143,-11206.41227055,0.00011886,2]
[350487986,1737919833153,-327.28701383,0.00011886,2]
[350487987,1737919833163,-1291.13732529,0.00011887,2]
[350487988,1737919833172,-694.57402766,0.00011887,2]
[350487989,1737919833181,-200.0,0.00011888,2]
[350487990,1737919833191,-294.41408616,0.00011889,2]
[350487991,1737919833201,-541.23470953,0.00011889,2]
[350487992,1737919833211,-11206.41227055,0.0001189,2]
[350487993,1737919833222,-654.57402767,0.00011892,2]
[350487994,1737919833232,-402.52707668,0.00011893,2]
[350487995,1737919833242,-200.0,0.00011895,2]
[350487996,1737919833251,-694.57402766,0.00011895,2]
[350487997,1737919833261,-362.52707668,0.00011896,2]
[350487998,1737919833271,-327.28701383,0.00011896,2]
[350487999,1737919833280,-2128.22455242,0.00011897,2]
[350488000,1737919833290,-5004.54930114,0.00011898,2]
[350488001,1737919833300,-3251.1133,0.00011899,2]
[350488002,1737919833309,-8048.28766081,0.00011899,2]
[350488003,1737919833319,-1994.6198,0.000119,2]
[350488004,1737919833329,-121050.41675769,0.000119,2]
[350488005,1737919833342,-340.34,0.000119,2]
[350488006,1737919833354,-2063.52084559,0.000119,2]
[350488007,1737919833366,-7960.91580602,0.000119,2]
[350488008,1737919833570,-413.21193929,0.000119,2]
[350488009,1737919833586,-49621.30201054,0.000119,2]
[350488010,1737919833607,-900.0,0.000119,2]
[350488011,1737919833631,-927.07492476,0.000119,2]
[350488012,1737919833643,-1945.55950178,0.000119,2]
[350488016,1737919837960,-316.2698799,0.000119,2]
[350488017,1737919837973,-317.21379945,0.000119,2]
[350488018,1737919838228,-1347.40343498,0.000119,2]
[350488020,1737919838237,-251.93,0.000119,2]
[350488022,1737919838247,-253.76,0.000119,2]
[350488024,1737919838256,-1000.0,0.000119,2]
[350488025,1737919838266,-500.0,0.000119,2]
[350488026,1737919838275,-294.41408616,0.000119,2]
[350488028,1737919838285,-2595.99247986,0.000119,2]
[350488179,1737919840123,-560.89799319,0.000119,2]
[350488180,1737919840146,-317.45,0.000119,2]
[350488181,1737919840157,-103.21717034,0.000119,2]
[350488182,1737919840166,-157.92301008,0.000119,2]
[350488183,1737919840175,-157.92301002,0.000119,2]
[350488184,1737919840184,-157.92301002,0.000119,2]
[350488185,1737919840194,-157.92301002,0.000119,2]
[350488186,1737919840202,-52.56228951,0.000119,2]
[350488187,1737919840214,-105.36072051,0.000119,2]
[350488188,1737919840223,-157.92301002,0.000119,2]
[350488189,1737919840232,-157.92301002,0.000119,2]
[350488190,1737919840241,-157.92301002,0.000119,2]
[350488191,1737919840251,-189.02621024,0.000119,2]
[350488192,1737919840260,-179.5955988,0.000119,2]
[350488193,1737919840270,-758.99844042,0.00011902,2]
[350488194,1737919840313,-7289.28922039,0.00011902,2]
[350488195,1737919840322,-1061.65359827,0.00011903,2]
[350488196,1737919840334,-644.82818535,0.00011903,2]
[350488197,1737919840346,-6905.45253584,0.00011903,2]
[350488206,1737919843170,-500.0,0.00011899,2]
[350488207,1737919843179,-25639.67026951,0.00011903,2]
[350488221,1737919845985,-500.0,0.00011899,2]
[350488222,1737919845994,-146.4848924,0.00011903,2]
[350488223,1737919846004,-2128.22455242,0.00011905,2]
[350488224,1737919846013,-654.57402767,0.00011908,2]
[350488225,1737919846023,-541.23470953,0.00011909,2]
[350488226,1737919846032,-200.0,0.0001191,2]
[350488227,1737919846041,-2899.37432798,0.0001191,2]
[350488228,1737919846094,-430.80352005,0.0001191,2]
[350488229,1737919846104,-197.43647395,0.00011914,2]
[350488230,1737919846151,-2.56352605,0.00011914,2]
[350488231,1737919846162,-2702.03447395,0.00011917,2]
[350488232,1737919846175,-1503.18969288,0.00011917,2]
[350488233,1737919846261,-30192.86531454,0.00011917,2]
[350488234,1737919846271,-654.57402767,0.00011918,2]
[350488235,1737919846280,-362.52707668,0.00011919,2]
[350488236,1737919846290,-501.39060582,0.00011973,2]
[350488237,1737919846299,-316.16369153,0.00011973,2]
[350488238,1737919846309,-500.0,0.00011973,2]
[350488239,1737919846319,-710.3626816,0.00011989,2]
[350488240,1737919846328,-679.6962034,0.0001199,2]
[350488241,1737919846337,-177.67705326,0.0001199,2]
[350488242,1737919846347,-608.0820948,0.00011992,2]
[350488243,1737919846356,-505.8015079,0.00011992,2]
[350488244,1737919846365,-403.5209211,0.00011992,2]
[350488245,1737919846375,-301.2403343,0.00011992,2]
[350488247,1737919846384,-500.0,0.00011997,2]
[350488249,1737919846393,-500.0,0.00011997,2]
[350488251,1737919846402,-500.0,0.00011997,2]
[350488253,1737919846411,-500.0,0.00011997,2]
[350488255,1737919846420,-500.0,0.00011997,2]
[350488257,1737919846429,-500.0,0.00011997,2]
[350488259,1737919846438,-500.0,0.00011997,2]
[350488261,1737919846447,-500.0,0.00011997,2]
[350488263,1737919846456,-500.0,0.00011997,2]
[350488265,1737919846466,-500.0,0.00011997,2]
[350488267,1737919846475,-500.0,0.00011997,2]
[350488269,1737919846484,-500.0,0.00011997,2]
[350488272,1737919846493,-500.0,0.00011997,2]
[350488274,1737919846502,-500.0,0.00011997,2]
[350488276,1737919846511,-500.0,0.00011997,2]
[350488278,1737919846520,-500.0,0.00011997,2]
[350488280,1737919846529,-500.0,0.00011997,2]
[350488282,1737919846538,-594.67,0.00011997,2]
[350488284,1737919846547,-500.0,0.00011997,2]
[350488286,1737919846561,-500.0,0.00011997,2]
[350488288,1737919846570,-500.0,0.00011997,2]
[350488290,1737919846580,-500.0,0.00011997,2]
[350488292,1737919846589,-500.0,0.00011997,2]
[350488294,1737919846599,-500.0,0.00011997,2]
[350488296,1737919846608,-500.0,0.00011997,2]
[350488298,1737919846617,-500.0,0.00011997,2]
[350488300,1737919846627,-522.17809422,0.00011997,2]
[350488302,1737919846636,-500.0,0.00011997,2]
[350488304,1737919846646,-500.0,0.00011997,2]
[350488306,1737919846655,-500.0,0.00011997,2]
[350488308,1737919846664,-318.679715,0.00011997,2]
[350488310,1737919846673,-2000.0,0.00011999,2]
[350488312,1737919846681,-2000.0,0.00011999,2]
[350488313,1737919846690,-518.24485843,0.00011999,2]
[350488315,1737919846699,-500.0,0.00011999,2]
[350488317,1737919846709,-500.0,0.00011999,2]
[350488319,1737919846718,-522.95,0.00011999,2]
[350488321,1737919846727,-446.99,0.00011999,2]
[350488322,1737919846745,-203.86,0.00011999,2]
[350488323,1737919846758,-609.85,0.00011999,2]
[350488324,1737919846768,-162.72,0.00011999,2]
[350488325,1737919846777,-500.0,0.00011999,2]
[350488326,1737919846788,-505.40540494,0.00011999,2]
[350488327,1737919846799,-521.83051057,0.00011999,2]
[350488328,1737919846809,-267.65745049,0.00011999,2]
[350488329,1737919846818,-35173.0,0.00012,2]
[350488330,1737919846828,-219.17956066,0.00012,2]
[350488331,1737919846837,-186759.14987163,0.00012,2]
[350488332,1737919846846,-234138.61211713,0.00012,2]
[350488333,1737919846860,-1601.3993352,0.00012,2]
[350488334,1737919846872,-1346.60363188,0.00012,2]
[350488338,1737920092441,176.33,8.995e-05,2]
[350488344,1737920776812,387.61,0.00016658,30]
[350488346,1737920986438,167.51,8.638e-05,2]
[350488347,1737921003145,310.0,0.00022,120]
[350488356,1737921032306,-215.31,0.00010137,2]
[350488357,1737921032316,-250.0,0.00010736,2]
[350488358,1737921032326,-1743.16,0.00010847,2]
[350488359,1737921032335,-505.0,0.00010877,2]
[350488360,1737921032344,-1000.0,0.00010879,2]
[350488361,1737921032354,-153.5,0.00010884,2]
[350488362,1737921032364,-167.51,0.00010902,2]
[350488363,1737921032374,-1664.98,0.00010905,2]
[350488364,1737921032384,-296.7182967,0.00010914,2]
[350488365,1737921032393,-500.0,0.00010932,2]
[350488366,1737921032402,-400.0,0.00011,4]
[350488367,1737921032411,-250.0,0.00011,2]
[350488368,1737921032421,-150.0,0.00011014,2]
[350488369,1737921032430,-254.05,0.0001105,2]
[350488370,1737921032440,-245.3,0.000111,2]
[350488371,1737921032449,-249.07,0.000111,2]
[350488372,1737921032459,-252.1,0.000111,2]
[350488373,1737921032468,-251.63,0.000111,2]
[350488374,1737921032477,-248.53,0.000111,2]
[350488375,1737921032486,-246.59,0.000111,2]